fUST/lending_fUST_20240810
["ID","MTS","AMOUNT","RATE_DAILY","PERIOD"]
[334581065,1723275041017,-153.818964,0.0001998,2]
[334581066,1723275041030,-596.04115,0.0001998,2]
[334581067,1723275041041,-596.04115,0.0001998,2]
[334581068,1723275041051,-151.0,0.0001998,2]
[334581069,1723275041061,-151.0,0.0001998,2]
[334581070,1723275041073,-498.608444,0.0001998,2]
[334581071,1723275041082,-520.558592,0.0001998,2]
[334581072,1723275041091,-498.608444,0.0001998,2]
[334581073,1723275041100,-520.558592,0.0001998,2]
[334581074,1723275041110,-155.145213,0.0001998,2]
[334581075,1723275041123,-155.145213,0.0001998,2]
[334581076,1723275041133,-151.0,0.0001998,2]
[334581077,1723275041142,-409.681053,0.00019989,2]
[334581078,1723275041151,-151.0,0.00019989,2]
[334581079,1723275041163,-151.0,0.00019989,2]
[334581080,1723275041172,-151.0,0.00019989,2]
[334581081,1723275041182,-151.0,0.0001999,2]
[334581082,1723275041193,-151.0,0.0001999,2]
[334581083,1723275041203,-151.0,0.0001999,2]
[334581084,1723275041212,-151.0,0.0001999,2]
[334581085,1723275041222,-151.0,0.0001999,2]
[334581086,1723275041232,-227947.67814997,0.0001999,2]
[334581087,1723275041241,-151.0,0.0001999,2]
[334581088,1723275041251,-151.0,0.0001999,2]
[334581089,1723275041261,-612.491713,0.0001999,2]
[334581090,1723275041271,-612.491713,0.0001999,2]
[334581091,1723275041289,-1233.245764,0.0001999,2]
[334581092,1723275041299,-1233.245764,0.0001999,2]
[334581093,1723275041310,-2602.22864022,0.0002,2]
[334581094,1723275041320,-15335.01905409,0.0002,2]
[334581095,1723275041330,-194455.85852807,0.0002,2]
[334581096,1723275041341,-3020.24745538,0.0002,2]
[334581097,1723275041354,-294.2333485,0.0002,2]
[334581098,1723275041364,-40854.92824377,0.0002,2]
[334581099,1723275041373,-9428.6230642,0.0002,2]
[334581100,1723275041382,-10494.9163161,0.0002,2]
[334581101,1723275041391,-171.57583552,0.0002,2]
[334581102,1723275041401,-216.64652277,0.0002,2]
[334581103,1723275041410,-4184.96471672,0.0002,2]
[334581104,1723275041419,-163.67414706,0.0002,2]
[334581105,1723275041428,-3123.01656173,0.0002,2]
[334581106,1723275041438,-1444.82566449,0.0002,2]
[334581107,1723275041448,-156.42647328,0.0002,2]
[334581108,1723275041457,-154.83259253,0.0002,2]
[334581109,1723275041467,-154187.51682503,0.0002,2]
[334581110,1723275041476,-150.112233,0.0002,2]
[334581111,1723275041486,-341.692922,0.0002,2]
[334581112,1723275041495,-341.692922,0.0002,2]
[334581113,1723275041505,-151.0,0.0002,2]
[334581114,1723275041514,-151.0,0.0002,2]
[334581115,1723275041524,-151.4401548,0.0002,2]
[334581116,1723275041533,-204.617322,0.0002,2]
[334581117,1723275041543,-151.0,0.0002,2]
[334581118,1723275041553,-151.0,0.0002,2]
[334581119,1723275041563,-409.681053,0.0002,2]
[334581121,1723275041573,-236.07053144,0.0002,2]
[334581122,1723275041583,-151.0,0.0002,2]
[334581123,1723275041593,-151.0,0.0002,2]
[334581124,1723275041603,-151.0,0.0002,2]
[334581125,1723275041612,-244.392481,0.0002,2]
[334581126,1723275041622,-244.392481,0.0002,2]
[334581127,1723275041631,-244.392481,0.0002,2]
[334581129,1723275041640,-563.694416,0.0002,2]
[334581131,1723275041650,-244.392481,0.0002,2]
[334581133,1723275041661,-563.694416,0.0002,2]
[334581135,1723275041674,-563.694416,0.0002,2]
[334581136,1723275041684,-563.694416,0.0002,2]
[334581137,1723275041694,-596.04115,0.0002,2]
[334581138,1723275041707,-596.04115,0.0002,2]
[334581139,1723275041722,-596.04115,0.0002,2]
[334581140,1723275041731,-596.04115,0.0002,2]
[334581141,1723275041741,-151.0,0.0002,2]
[334581142,1723275041751,-151.0,0.0002,2]
[334581143,1723275041761,-195.868289,0.0002,2]
[334581144,1723275041771,-266.70363675,0.0002,2]
[334581145,1723275041790,-498.608444,0.0002,2]
[334581146,1723275041800,-498.608444,0.0002,2]
[334581147,1723275041811,-520.558592,0.0002,2]
[334581148,1723275041821,-520.558592,0.0002,2]
[334581149,1723275041832,-498.608444,0.0002,2]
[334581150,1723275041843,-498.608444,0.0002,2]
[334581151,1723275041854,-520.558592,0.0002,2]
[334581152,1723275041864,-520.558592,0.0002,2]
[334581153,1723275041873,-155.145213,0.0002,2]
[334581154,1723275041884,-155.145213,0.0002,2]
[334581155,1723275041893,-155.145213,0.0002,2]
[334581156,1723275041902,-155.145213,0.0002,2]
[334581157,1723275041912,-22485.98405419,0.0002,2]
[334581158,1723275041922,-151.0,0.0002,2]
[334581159,1723275041932,-151.0,0.0002,2]
[334581160,1723275041942,-2000.0,0.0002,2]
[334581161,1723275041951,-151.0,0.0002,2]
[334581162,1723275041960,-265.891888,0.0002,2]
[334581163,1723275041970,-612.491713,0.0002,2]
[334581164,1723275041981,-612.491713,0.0002,2]
[334581165,1723275041991,-1233.245764,0.0002,2]
[334581166,1723275042004,-1233.245764,0.0002,2]
[334581167,1723275042016,-230.0,0.00020022,2]
[334581168,1723275042027,-230.0,0.00020022,2]
[334581169,1723275042037,-230.0,0.00020022,2]
[334581170,1723275042047,-230.0,0.00020022,2]
[334581171,1723275042058,-230.0,0.00020022,2]
[334581172,1723275042069,-230.0,0.00020022,2]
[334581173,1723275042078,-230.0,0.00020022,2]
[334581174,1723275042087,-230.0,0.00020022,2]
[334581175,1723275042098,-230.0,0.00020022,2]
[334581176,1723275042109,-230.0,0.00020022,2]
[334581177,1723275042120,-230.0,0.00020022,2]
[334581178,1723275042139,-230.0,0.00020022,2]
[334581179,1723275042150,-230.0,0.00020022,2]
[334581180,1723275042160,-230.0,0.00020022,2]
[334581181,1723275042169,-444.0,0.00020022,2]
[334581182,1723275042180,-444.0,0.00020022,2]
[334581183,1723275042189,-444.0,0.00020022,2]
[334581184,1723275042199,-444.0,0.00020022,2]
[334581185,1723275042208,-444.0,0.00020022,2]
[334581187,1723275042218,-444.0,0.00020022,2]
[334581188,1723275042228,-444.0,0.00020022,2]
[334581189,1723275042237,-444.0,0.00020022,2]
[334581190,1723275042247,-444.0,0.00020022,2]
[334581191,1723275042259,-444.0,0.00020022,2]
[334581192,1723275042270,-444.0,0.00020022,2]
[334581193,1723275042281,-444.0,0.00020022,2]
[334581194,1723275042292,-444.0,0.00020022,2]
[334581195,1723275042303,-444.0,0.00020022,2]
[334581196,1723275042312,-600.0,0.00020048,2]
[334581197,1723275042322,-1000.0,0.00020049,2]
[334581198,1723275042334,-151.0,0.00020059,2]
[334581199,1723275042344,-2683.615045,0.00020089,2]
[334581200,1723275042354,-1570.129309,0.00020089,2]
[334581201,1723275042363,-3724.795981,0.00020089,2]
[334581202,1723275042373,-167.048977,0.00020089,2]
[334581203,1723275042383,-184.132508,0.00020089,2]
[334581204,1723275042395,-157.770579,0.00020089,2]
[334581205,1723275042404,-158.012499,0.00020089,2]
[334581206,1723275042414,-151.0,0.00020092,2]
[334581207,1723275042424,-151.561584,0.00020092,2]
[334581208,1723275042434,-151.0,0.00020092,2]
[334581209,1723275042443,-151.0,0.00020092,2]
[334581210,1723275042452,-150.112233,0.000201,5]
[334581211,1723275042462,-76330.5225452,0.00020112,2]
[334581212,1723275042472,-243.109662,0.00020112,2]
[334581213,1723275042481,-151.0,0.00020112,2]
[334581214,1723275042491,-151.0,0.00020112,2]
[334581215,1723275042500,-151.0,0.00020112,2]
[334581216,1723275042510,-341.692922,0.00020112,2]
[334581217,1723275042521,-341.692922,0.00020112,2]
[334581218,1723275042533,-151.0,0.00020112,2]
[334581219,1723275042542,-151.0,0.00020112,2]
[334581220,1723275042551,-151.0,0.00020112,2]
[334581221,1723275042560,-151.0,0.00020112,2]
[334581222,1723275042570,-151.0,0.00020112,2]
[334581223,1723275042580,-409.681053,0.00020112,2]
[334581224,1723275042591,-409.681053,0.00020112,2]
[334581225,1723275042602,-151.72358,0.00020112,2]
[334581226,1723275042611,-151.0,0.00020112,2]
[334581227,1723275042620,-151.0,0.00020112,2]
[334581228,1723275042630,-244.392481,0.00020112,2]
[334581229,1723275042640,-563.694416,0.00020112,2]
[334581230,1723275042649,-244.392481,0.00020112,2]
[334581231,1723275042658,-563.694416,0.00020112,2]
[334581232,1723275042668,-596.04115,0.00020112,2]
[334581233,1723275042677,-596.04115,0.00020112,2]
[334581234,1723275042687,-151.0,0.00020112,2]
[334581235,1723275042696,-498.608444,0.00020112,2]
[334581236,1723275042705,-520.558592,0.00020112,2]
[334581237,1723275042715,-498.608444,0.00020112,2]
[334581238,1723275042724,-520.558592,0.00020112,2]
[334581239,1723275042734,-155.145213,0.00020112,2]
[334581240,1723275042743,-155.145213,0.00020112,2]
[334581241,1723275042753,-182.522005,0.00020112,2]
[334581242,1723275042762,-151.0,0.00020112,2]
[334581243,1723275042772,-612.491713,0.00020112,2]
[334581244,1723275042783,-612.491713,0.00020112,2]
[334581245,1723275042792,-1233.245764,0.00020112,2]
[334581246,1723275042802,-1233.245764,0.00020112,2]
[334581247,1723275042811,-960.5,0.00020164,3]
[334581248,1723275042821,-480.24,0.00020164,3]
[334581249,1723275042831,-471.17820835,0.0002028,2]
[334581250,1723275042840,-346.25605686,0.0002028,2]
[334581251,1723275042849,-155.09721933,0.0002028,2]
[334581252,1723275042859,-150.112233,0.000203,4]
[334581253,1723275042868,-2683.615045,0.0002034,2]
[334581254,1723275042878,-1570.129309,0.0002034,2]
[334581255,1723275042888,-3724.795981,0.0002034,2]
[334581256,1723275042897,-1921.0,0.00020349,3]
[334581257,1723275042907,-151.0,0.0002037,2]
[334581259,1723275042917,-151.0,0.0002037,2]
[334581260,1723275042926,-150.112233,0.000205,4]
[334581262,1723275042936,-150.0,0.00020567,2]
[334581263,1723275043064,-507.0,0.00020567,2]
[334581264,1723275043074,-1412.0,0.00020567,2]
[334581265,1723275043084,-167.048977,0.00020592,2]
[334581266,1723275043094,-2683.615045,0.00020592,2]
[334581267,1723275043104,-1570.129309,0.00020592,2]
[334581268,1723275043113,-3724.795981,0.00020592,2]
[334581269,1723275043125,-150.0,0.00020649,2]
[334581270,1723275043134,-27943.79830827,0.00020654,2]
[334581271,1723275043272,-818.75508754,0.00020654,2]
[334581300,1723275045787,-414.16414531,0.00016347,2]
[334581301,1723275045797,-694.52815247,0.00017019,2]
[334581302,1723275045807,-247.385105,0.00019441,2]
[334581303,1723275045817,-13689.93502582,0.00020654,2]
[334581304,1723275045826,-160.0,0.00020678,3]
[334581305,1723275045836,-500.0,0.00020679,2]
[334581306,1723275045845,-500.0,0.00020679,2]
[334581307,1723275045855,-500.0,0.00020679,2]
[334581308,1723275045864,-600.4665,0.000207,2]
[334581309,1723275045874,-150.01,0.00020708,2]
[334581310,1723275045883,-2993.33781285,0.00020708,2]
[334581311,1723275045893,-1000.0,0.0002072,4]
[334581312,1723275045903,-163.419935,0.00020747,2]
[334581313,1723275045912,-186.920156,0.00020747,2]
[334581314,1723275045922,-1000.0,0.00020748,4]
[334581315,1723275045931,-151.0,0.00020757,2]
[334581316,1723275045942,-151.0,0.00020757,2]
[334581317,1723275045951,-150.234115,0.00020759,2]
[334581318,1723275045961,-1000.0,0.00020775,4]
[334581319,1723275045970,-300.0,0.000208,9]
[334581320,1723275045980,-500.0,0.000208,2]
[334581321,1723275045989,-1000.0,0.00020803,4]
[334581322,1723275045999,-323.75256006,0.0002082,3]
[334581323,1723275046008,-499.15623592,0.00020821,3]
[334581324,1723275046017,-502.85179291,0.00020821,3]
[334581325,1723275046027,-294.08246711,0.00020821,3]
[334581326,1723275046036,-307.00971664,0.00020821,3]
[334581327,1723275046046,-500.0,0.00020821,3]
[334581328,1723275046057,-340.34802559,0.00020821,3]
[334581329,1723275046068,-500.0,0.00020821,3]
[334581330,1723275046079,-500.0,0.00020821,3]
[334581331,1723275046090,-548.54323977,0.00020821,3]
[334581332,1723275046100,-500.0,0.00020821,3]
[334581333,1723275046110,-565.29734231,0.00020821,3]
[334581334,1723275046122,-532.04310518,0.00020821,3]
[334581335,1723275046134,-196.75710832,0.00020821,3]
[334581336,1723275046145,-500.0,0.00020821,3]
[334581338,1723275046155,-1095.95,0.00020821,3]
[334581340,1723275046166,-503.75870773,0.00020821,3]
[334581341,1723275046175,-500.0,0.00020821,3]
[334581342,1723275046185,-505.59162293,0.00020821,3]
[334581343,1723275046198,-219.30487628,0.00020821,3]
[334581344,1723275046207,-505.29704672,0.00020821,3]
[334581345,1723275046216,-500.0,0.00020821,3]
[334581346,1723275046226,-527.758689,0.00020821,3]
[334581347,1723275046236,-500.0,0.00020821,3]
[334581348,1723275046246,-500.0,0.00020821,3]
[334581349,1723275046256,-500.0,0.00020821,3]
[334581350,1723275046266,-515.35381011,0.00020821,3]
[334581351,1723275046276,-500.0,0.00020821,3]
[334581352,1723275046286,-500.0,0.00020821,3]
[334581353,1723275046296,-509.15636668,0.00020821,3]
[334581354,1723275046306,-500.0,0.00020821,3]
[334581355,1723275046316,-687.21,0.00020821,3]
[334581356,1723275046327,-500.0,0.00020821,3]
[334581357,1723275046338,-500.0,0.00020821,3]
[334581359,1723275046347,-506.74375151,0.00020821,3]
[334581361,1723275046356,-500.0,0.00020821,3]
[334581363,1723275046366,-500.0,0.00020821,3]
[334581366,1723275046375,-500.0,0.00020821,3]
[334581369,1723275046385,-355.22870848,0.00020821,3]
[334581370,1723275046394,-500.0,0.00020821,3]
[334581371,1723275046404,-505.11462333,0.00020821,3]
[334581372,1723275046414,-509.49445872,0.00020821,3]
[334581373,1723275046423,-500.0,0.00020821,3]
[334581374,1723275046432,-500.0,0.00020821,3]
[334581375,1723275046442,-500.0,0.00020821,3]
[334581376,1723275046451,-500.0,0.00020821,3]
[334581377,1723275046460,-503.22265799,0.00020821,3]
[334581378,1723275046471,-516.41732021,0.00020821,3]
[334581379,1723275046482,-503.64010005,0.00020821,3]
[334581380,1723275046491,-201.40103009,0.00020821,3]
[334581381,1723275046501,-449.59352069,0.00020821,3]
[334581386,1723275047006,-165.66670452,0.00016309,2]
[334581387,1723275047017,-720.4,0.00018794,3]
[334581388,1723275047027,-247.385105,0.00019536,2]
[334581389,1723275047038,-247.385105,0.000198,2]
[334581390,1723275047047,-247.385105,0.00019879,2]
[334581391,1723275047057,-247.385105,0.0001999,2]
[334581392,1723275047067,-247.385105,0.0002,2]
[334581393,1723275047077,-247.385105,0.00020112,2]
[334581394,1723275047087,-50.40647931,0.00020821,3]
[334581395,1723275047096,-506.08862762,0.00020821,3]
[334581396,1723275047106,-500.0,0.00020821,3]
[334581397,1723275047115,-500.0,0.00020821,3]
[334581398,1723275047128,-500.0,0.00020821,3]
[334581399,1723275047138,-502.03685904,0.00020821,3]
[334581400,1723275047147,-500.0,0.00020821,3]
[334581401,1723275047157,-714.68,0.00020821,3]
[334581402,1723275047167,-500.0,0.00020821,3]
[334581403,1723275047177,-500.0,0.00020821,3]
[334581404,1723275047187,-506.88167816,0.00020821,3]
[334581405,1723275047196,-500.0,0.00020821,3]
[334581406,1723275047207,-500.0,0.00020821,3]
[334581407,1723275047218,-304.29983064,0.00020821,3]
[334581408,1723275047228,-500.0,0.00020821,3]
[334581409,1723275047237,-500.0,0.00020821,3]
[334581410,1723275047246,-177.54621639,0.00020821,3]
[334581411,1723275047255,-500.0,0.00020821,3]
[334581412,1723275047265,-1010.02,0.00020821,3]
[334581413,1723275047274,-500.0,0.00020821,3]
[334581414,1723275047284,-200.0,0.00020821,3]
[334581415,1723275047294,-500.0,0.00020821,3]
[334581416,1723275047304,-500.0,0.00020821,3]
[334581417,1723275047313,-500.0,0.00020821,3]
[334581418,1723275047323,-500.0,0.00020821,3]
[334581419,1723275047333,-500.0,0.00020821,3]
[334581420,1723275047343,-500.0,0.00020821,3]
[334581421,1723275047353,-500.0,0.00020821,3]
[334581422,1723275047363,-500.0,0.00020821,3]
[334581423,1723275047372,-507.6874512,0.00020821,3]
[334581424,1723275047382,-418.53740048,0.00020821,3]
[334581425,1723275047391,-221.55324895,0.00020821,3]
[334581426,1723275047400,-506.89748179,0.00020821,3]
[334581427,1723275047410,-500.0,0.00020821,3]
[334581428,1723275047419,-500.0,0.00020821,3]
[334581429,1723275047429,-244.40232907,0.00020821,3]
[334581430,1723275047438,-500.0,0.00020821,3]
[334581431,1723275047447,-500.0,0.00020821,3]
[334581432,1723275047456,-500.0,0.00020821,3]
[334581433,1723275047466,-509.36023784,0.00020821,3]
[334581434,1723275047476,-500.0,0.00020821,3]
[334581435,1723275047487,-500.0,0.00020821,3]
[334581436,1723275047497,-504.51121864,0.00020821,3]
[334581437,1723275047507,-500.0,0.00020821,3]
[334581438,1723275047518,-500.0,0.00020821,3]
[334581439,1723275047531,-500.0,0.00020821,3]
[334581440,1723275047540,-500.0,0.00020821,3]
[334581441,1723275047549,-500.0,0.00020821,3]
[334581442,1723275047560,-500.0,0.00020821,3]
[334581443,1723275047570,-500.0,0.00020821,3]
[334581444,1723275047579,-500.0,0.00020821,3]
[334581445,1723275047588,-503.59223273,0.00020821,3]
[334581446,1723275047597,-500.0,0.00020821,3]
[334581447,1723275047606,-500.0,0.00020821,3]
[334581448,1723275047616,-1064.67,0.00020821,3]
[334581449,1723275047625,-500.0,0.00020821,3]
[334581450,1723275047634,-500.0,0.00020821,3]
[334581451,1723275047643,-504.06237115,0.00020821,3]
[334581452,1723275047652,-1803.42,0.00020821,3]
[334581453,1723275047663,-586.25,0.00020821,3]
[334581454,1723275047672,-500.0,0.00020821,3]
[334581455,1723275047681,-500.0,0.00020821,3]
[334581456,1723275047690,-500.0,0.00020821,3]
[334581457,1723275047700,-502.66179801,0.00020821,3]
[334581458,1723275047709,-501.56695122,0.00020821,3]
[334581459,1723275047718,-500.0,0.00020821,3]
[334581460,1723275047726,-504.30667222,0.00020821,3]
[334581461,1723275047735,-391.00140886,0.00020821,3]
[334581462,1723275047744,-500.0,0.00020821,3]
[334581463,1723275047754,-500.0,0.00020821,3]
[334581464,1723275047763,-500.0,0.00020821,3]
[334581465,1723275047772,-500.0,0.00020821,3]
[334581466,1723275047781,-500.0,0.00020821,3]
[334581467,1723275047790,-500.0,0.00020821,3]
[334581468,1723275047799,-500.0,0.00020821,3]
[334581469,1723275047809,-500.0,0.00020821,3]
[334581470,1723275047818,-1021.2,0.00020821,3]
[334581471,1723275047827,-502.00152464,0.00020821,3]
[334581472,1723275047836,-500.0,0.00020821,3]
[334581473,1723275047845,-500.0,0.00020821,3]
[334581474,1723275047854,-500.0,0.00020821,3]
[334581475,1723275047863,-500.0,0.00020821,3]
[334581476,1723275047871,-500.0,0.00020821,3]
[334581477,1723275047881,-484.56118132,0.00020821,3]
[334581478,1723275047889,-500.0,0.00020821,3]
[334581479,1723275047898,-506.14104257,0.00020821,3]
[334581480,1723275048026,-500.0,0.00020821,3]
[334581481,1723275048043,-504.42376571,0.00020821,3]
[334581482,1723275048052,-500.0,0.00020821,3]
[334581483,1723275048061,-500.0,0.00020821,3]
[334581484,1723275048071,-500.0,0.00020821,3]
[334581485,1723275048080,-500.0,0.00020821,3]
[334581486,1723275048089,-503.99169608,0.00020821,3]
[334581487,1723275048098,-500.0,0.00020821,3]
[334581488,1723275048107,-500.0,0.00020821,3]
[334581489,1723275048117,-1037.56,0.00020821,3]
[334581490,1723275048132,-500.0,0.00020821,3]
[334581491,1723275048142,-612.12,0.00020821,3]
[334581492,1723275048152,-500.0,0.00020821,3]
[334581493,1723275048162,-501.95382073,0.00020821,3]
[334581494,1723275048173,-500.0,0.00020821,3]
[334581495,1723275048183,-500.0,0.00020821,3]
[334581496,1723275048193,-510.32077151,0.00020821,3]
[334581497,1723275048206,-500.0,0.00020821,3]
[334581498,1723275048216,-500.0,0.00020821,3]
[334581499,1723275048227,-500.0,0.00020821,3]
[334581500,1723275048240,-500.0,0.00020821,3]
[334581501,1723275048250,-504.36990791,0.00020821,3]
[334581502,1723275048259,-527.63,0.00020821,3]
[334581503,1723275048269,-530.02,0.00020821,3]
[334581504,1723275048278,-503.48098623,0.00020821,3]
[334581505,1723275048288,-500.0,0.00020821,3]
[334581506,1723275048298,-500.0,0.00020821,3]
[334581507,1723275048307,-500.0,0.00020821,3]
[334581508,1723275048316,-541.53,0.00020821,3]
[334581509,1723275048326,-742.59,0.00020821,3]
[334581510,1723275048336,-500.0,0.00020821,3]
[334581511,1723275048346,-500.0,0.00020821,3]
[334581512,1723275048357,-500.0,0.00020821,3]
[334581513,1723275048366,-500.0,0.00020821,3]
[334581514,1723275048375,-500.0,0.00020821,3]
[334581515,1723275048385,-500.0,0.00020821,3]
[334581516,1723275048394,-887.05,0.00020821,3]
[334581517,1723275048403,-500.0,0.00020821,3]
[334581518,1723275048413,-500.0,0.00020821,3]
[334581519,1723275048422,-500.0,0.00020821,3]
[334581520,1723275048431,-500.0,0.00020821,3]
[334581521,1723275048440,-500.0,0.00020821,3]
[334581522,1723275048450,-500.0,0.00020821,3]
[334581523,1723275048459,-500.0,0.00020821,3]
[334581524,1723275048468,-500.0,0.00020821,3]
[334581525,1723275048478,-500.0,0.00020821,3]
[334581526,1723275048487,-500.0,0.00020821,3]
[334581527,1723275048497,-921.27,0.00020821,3]
[334581528,1723275048506,-500.0,0.00020821,3]
[334581529,1723275048516,-500.0,0.00020821,3]
[334581530,1723275048526,-715.78,0.00020821,3]
[334581531,1723275048536,-500.0,0.00020821,3]
[334581532,1723275048546,-509.65861417,0.00020821,3]
[334581533,1723275048555,-500.0,0.00020821,3]
[334581534,1723275048566,-500.0,0.00020821,3]
[334581535,1723275048575,-500.0,0.00020821,3]
[334581536,1723275048584,-500.0,0.00020821,3]
[334581537,1723275048594,-500.0,0.00020821,3]
[334581538,1723275048609,-501.28754201,0.00020821,3]
[334581539,1723275048619,-277.324012,0.00020821,2]
[334581540,1723275048629,-500.0,0.00020821,3]
[334581541,1723275048638,-402.51032163,0.00020821,3]
[334581542,1723275048648,-500.0,0.00020821,3]
[334581543,1723275048657,-500.55537391,0.00020821,3]
[334581544,1723275048666,-500.0,0.00020821,3]
[334581545,1723275048675,-500.0,0.00020821,3]
[334581546,1723275048684,-504.36745766,0.00020821,3]
[334581547,1723275048694,-500.0,0.00020821,3]
[334581548,1723275048704,-500.0,0.00020821,3]
[334581549,1723275048714,-500.0,0.00020821,3]
[334581550,1723275048724,-500.0,0.00020821,3]
[334581551,1723275048736,-500.0,0.00020821,3]
[334581552,1723275048745,-259.509527,0.00020821,2]
[334581553,1723275048756,-502.39300284,0.00020821,3]
[334581554,1723275048766,-609.85,0.00020821,3]
[334581555,1723275048775,-500.0,0.00020821,3]
[334581556,1723275048786,-513.8653189,0.00020821,3]
[334581557,1723275048796,-500.0,0.00020821,3]
[334581558,1723275048806,-500.0,0.00020821,3]
[334581559,1723275048815,-500.0,0.00020821,3]
[334581560,1723275048825,-500.0,0.00020821,3]
[334581561,1723275048834,-500.0,0.00020821,3]
[334581562,1723275048844,-526.59515084,0.00020821,3]
[334581563,1723275048854,-500.0,0.00020821,3]
[334581564,1723275048863,-500.0,0.00020821,3]
[334581565,1723275048873,-500.0,0.00020821,3]
[334581566,1723275048882,-560.21362109,0.00020821,3]
[334581567,1723275048892,-1293.74,0.00020821,3]
[334581568,1723275048902,-509.5476719,0.00020821,3]
[334581569,1723275048911,-507.78993842,0.00020821,3]
[334581570,1723275048921,-500.0,0.00020821,3]
[334581571,1723275048930,-500.0,0.00020821,3]
[334581572,1723275048939,-503.08435659,0.00020821,3]
[334581573,1723275048948,-500.0,0.00020821,3]
[334581574,1723275048957,-500.0,0.00020821,3]
[334581575,1723275048966,-501.48791358,0.00020821,3]
[334581576,1723275048975,-500.0,0.00020821,3]
[334581577,1723275048985,-506.76254223,0.00020821,3]
[334581578,1723275048994,-500.0,0.00020821,3]
[334581579,1723275049003,-500.0,0.00020821,3]
[334581580,1723275049013,-1207.52,0.00020821,3]
[334581581,1723275049022,-500.0,0.00020821,3]
[334581582,1723275049032,-500.0,0.00020821,3]
[334581583,1723275049044,-500.0,0.00020821,3]
[334581584,1723275049062,-625.50403342,0.00020821,3]
[334581585,1723275049071,-500.0,0.00020821,3]
[334581586,1723275049081,-500.0,0.00020821,3]
[334581587,1723275049090,-500.0,0.00020821,3]
[334581588,1723275049099,-500.0,0.00020821,3]
[334581589,1723275049108,-500.0,0.00020821,3]
[334581590,1723275049117,-500.0,0.00020821,3]
[334581591,1723275049130,-500.0,0.00020821,3]
[334581592,1723275049139,-500.0,0.00020821,3]
[334581593,1723275049148,-774.04,0.00020821,3]
[334581594,1723275049158,-634.20756766,0.00020821,3]
[334581595,1723275049167,-500.0,0.00020821,3]
[334581596,1723275049178,-500.0,0.00020821,3]
[334581597,1723275049187,-500.0,0.00020821,3]
[334581598,1723275049197,-500.0,0.00020821,3]
[334581599,1723275049207,-500.0,0.00020821,3]
[334581600,1723275049218,-500.0,0.00020821,3]
[334581601,1723275049227,-505.07867188,0.00020821,3]
[334581602,1723275049236,-500.0,0.00020821,3]
[334581603,1723275049245,-892.31,0.00020821,3]
[334581604,1723275049254,-370.90705473,0.00020821,3]
[334581605,1723275049263,-500.0,0.00020821,3]
[334581606,1723275049272,-500.0,0.00020821,3]
[334581607,1723275049282,-500.0,0.00020821,3]
[334581608,1723275049292,-500.0,0.00020821,3]
[334581609,1723275049301,-500.0,0.00020821,3]
[334581610,1723275049310,-700.28,0.00020821,3]
[334581611,1723275049320,-500.0,0.00020821,3]
[334581612,1723275049329,-500.0,0.00020821,3]
[334581613,1723275049339,-806.93,0.00020821,3]